Workbook

Sheet MESAS
B2: CONSEJO SUPERIOR
B3: PLANCHA | C3: CANDIDATO | D3: M1 | E3: M2 | F3: M3 | G3: M4 | H3: M5 | I3: M6 | J3: M7 | K3: M8 | L3: M9 | M3: M10 | N3: M11 | O3: M12 | P3: M13 | Q3: M14 | R3: M15 | S3: M16 | T3: M17 | U3: M18 | V3: M19 | W3: M20 | X3: M21 | Y3: M22 | Z3: M23 | AA3: M24 | AB3: M25 | AC3: M26 | AD3: M27 | AE3: M28 | AF3: M29 | AG3: M30 | AH3: M31 | AI3: M32 | AJ3: M33 | AK3: M34 | AL3: M35 | AM3: M36 | AN3: M37 | AO3: M38 | AP3: M39 | AQ3: M40 | AR3: M41 | AS3: M42 | AT3: M43 | AU3: M44 | AV3: M45 | AW3: M46 | AX3: M47 | AY3: M48 | AZ3: M49 | BA3: M50 | BB3: M51 | BC3: TOTALES
B4: Plancha Retirada | C4: LEONARDO DAVID NIEBLES NUÑEZ | BC4: =+SUM(D4:BB5) -> 0
C5: MIGUEL ANGEL RAMOS PALM
B6: 2 | C6: LEYTON DANIEL BARRIOS TORRES | D6: 121 | E6: 157 | F6: 57 | G6: 165 | H6: 180 | I6: 123 | J6: 109 | K6: 155 | L6: 176 | M6: 96 | N6: 66 | O6: 82 | P6: 164 | Q6: 96 | R6: 147 | S6: 126 | T6: 119 | U6: 71 | V6: 63 | W6: 60 | X6: 72 | Y6: 107 | Z6: 161 | AA6: 43 | AB6: 51 | AC6: 46 | AD6: 39 | AE6: 51 | AF6: 52 | AG6: 53 | AH6: 51 | AI6: 60 | AJ6: 47 | AK6: 30 | AL6: 55 | AM6: 47 | AN6: 60 | AO6: 58 | AP6: 86 | AQ6: 74 | AR6: 27 | AS6: 32 | AT6: 37 | AU6: 54 | AV6: 70 | AW6: 72 | AX6: 61 | AY6: 61 | AZ6: 54 | BA6: 83 | BB6: 126 | BC6: =+SUM(D6:BB7) -> 4253
C7: WILLIAM LUENGAS CUELLO
B8: 3 | C8: LINO JUNIOR PEREIRA MONTERROZA | E8: 1 | I8: 1 | K8: 2 | L8: 2 | M8: 1 | R8: 3 | S8: 2 | T8: 1 | U8: 5 | V8: 1 | X8: 2 | Z8: 2 | AE8: 2 | AF8: 1 | AH8: 1 | AI8: 2 | AJ8: 1 | AK8: 1 | AO8: 2 | AP8: 1 | AQ8: 1 | AT8: 1 | AU8: 1 | AV8: 1 | AW8: 1 | AX8: 2 | AY8: 1 | BA8: 2 | BC8: =+SUM(D8:BB9) -> 44
C9: JESUS ROBERTO MACHACON ORTIZ
B10: 4 | C10: GUSTAVO HUMBERTO ROJAS MORALES | D10: 77 | E10: 123 | F10: 36 | G10: 119 | H10: 72 | I10: 59 | J10: 114 | K10: 114 | L10: 89 | M10: 56 | N10: 39 | O10: 87 | P10: 102 | Q10: 72 | R10: 63 | S10: 83 | T10: 72 | U10: 47 | V10: 103 | W10: 77 | X10: 89 | Y10: 90 | Z10: 59 | AA10: 47 | AB10: 79 | AC10: 53 | AD10: 48 | AE10: 52 | AF10: 49 | AG10: 67 | AH10: 43 | AI10: 53 | AJ10: 49 | AK10: 30 | AL10: 26 | AM10: 49 | AN10: 26 | AO10: 19 | AP10: 26 | AQ10: 36 | AR10: 57 | AS10: 20 | AT10: 23 | AU10: 37 | AV10: 34 | AW10: 23 | AX10: 53 | AY10: 45 | AZ10: 22 | BA10: 49 | BB10: 141 | BC10: =+SUM(D10:BB11) -> 3098
C11: MEDARDO HUMBERTO DRAGO LEON
B12: VOTOS EN BLANCO | D12: 6 | E12: 12 | F12: 3 | G12: 4 | H12: 6 | I12: 7 | J12: 8 | K12: 15 | L12: 14 | M12: 4 | N12: 5 | O12: 14 | P12: 14 | Q12: 7 | R12: 6 | S12: 13 | T12: 7 | U12: 6 | V12: 3 | W12: 1 | X12: 3 | Y12: 8 | Z12: 13 | AA12: 1 | AB12: 1 | AC12: 4 | AD12: 2 | AE12: 2 | AG12: 4 | AH12: 4 | AI12: 7 | AJ12: 13 | AK12: 7 | AL12: 6 | AM12: 4 | AN12: 6 | AO12: 12 | AP12: 13 | AQ12: 9 | AS12: 1 | AT12: 5 | AU12: 6 | AV12: 9 | AW12: 25 | AX12: 9 | AY12: 5 | AZ12: 4 | BA12: 15 | BB12: 7 | BC12: =+SUM(D12:BB12) -> 360
B13: VOTOS NULOS | D13: 9 | E13: 3 | G13: 3 | H13: 2 | I13: 1 | J13: 3 | K13: 1 | L13: 2 | Q13: 1 | R13: 3 | S13: 1 | T13: 2 | U13: 5 | V13: 1 | X13: 1 | Y13: 3 | Z13: 3 | AA13: 2 | AB13: 3 | AC13: 1 | AG13: 1 | AJ13: 1 | AM13: 2 | AN13: 1 | AO13: 1 | AP13: 3 | AQ13: 1 | AV13: 3 | AX13: 1 | AY13: 1 | BB13: 4 | BC13: =+SUM(D13:BB13) -> 69
B14: TARJETONES SIN MARCAR | E14: 1 | G14: 0 | H14: 1 | I14: 0 | K14: 1 | R14: 1 | V14: 2 | X14: 1 | Y14: 1 | AM14: 1 | BB14: 2 | BC14: =+SUM(D14:BB14) -> 11
B15: TOTAL VOTOS | D15: =+SUM(D4:D14) -> 213 | E15: 297 | F15: 96 | G15: 291 | H15: 261 | I15: 191 | J15: 234 | K15: 288 | L15: 283 | M15: 157 | N15: 110 | O15: 183 | P15: 280 | Q15: 176 | R15: 223 | S15: 225 | T15: 201 | U15: 134 | V15: 173 | W15: 138 | X15: 168 | Y15: 209 | Z15: 238 | AA15: 93 | AB15: 134 | AC15: 104 | AD15: 89 | AE15: 107 | AF15: 102 | AG15: 125 | AH15: 99 | AI15: 122 | AJ15: 111 | AK15: 68 | AL15: 87 | AM15: 103 | AN15: 93 | AO15: 92 | AP15: 129 | AQ15: 121 | AR15: 84 | AS15: 53 | AT15: 66 | AU15: 98 | AV15: 117 | AW15: =+SUM(AW4:AW14) -> 121 | AX15: 126 | AY15: 113 | AZ15: 80 | BA15: 149 | BB15: 280 | BC15: 7835
B18: CONSEJO FACULTAD DE ARQUITECTURA
B19: PLANCHA | C19: CANDIDATO | D19: M1 | E19: M2 | F19: M3 | G19: M4 | H19: M5 | I19: M6 | J19: M7 | K19: M8 | L19: M9 | M19: M10 | N19: M11 | O19: M12 | P19: M13 | Q19: M14 | R19: M15 | S19: M16 | T19: M17 | U19: M18 | V19: M19 | W19: M20 | X19: M21 | Y19: M22 | Z19: M23 | AA19: M24 | AB19: M25 | AC19: M26 | AD19: M27 | AE19: M28 | AF19: M29 | AG19: M30 | AH19: M31 | AI19: M32 | AJ19: M33 | AK19: M34 | AL19: M35 | AM19: M36 | AN19: M37 | AO19: M38 | AP19: M39 | AQ19: M40 | AR19: M41 | AS19: M42 | AT19: M43 | AU19: M44 | AV19: M45 | AW19: M46 | AX19: M47 | AY19: M48 | AZ19: M49 | BA19: M50 | BB19: M51 | BC19: TOTALES
B20: 5 | C20: JOSE CARLOS CAMPO ORTIZ | AR20: 10 | AS20: 15 | AT20: 28 | AU20: 22 | BB20: 3 | BC20: =+SUM(D20:BB21) -> 78
C21: MARCOS CASTRO HENRIQUEZ
B22: 6 | C22: YEHOSHUA DAVID SANCHEZ BUELVAS | AR22: 4 | AS22: 6 | AT22: 7 | AU22: 21 | BB22: 1 | BC22: =+SUM(D22:BB23) -> 39
C23: RICARDO ALFONSO FONSECA OSPINO
B24: 7 | C24: ALFONSO CAMARGO ALVAREZ | AR24: 46 | AS24: 16 | AT24: 16 | AU24: 6 | BB24: 9 | BC24: =+SUM(D24:BB25) -> 93
C25: IVAN ARMANDO NAVARRO ARZUZA
B26: 8 | C26: MANUEL VICENTE LLINAS OSORIO | AR26: 15 | AS26: 8 | AT26: 8 | AU26: 35 | BB26: 3 | BC26: =+SUM(D26:BB27) -> 69
C27: JOSE MIGUEL ORTEGA PISCIOTTI
B28: VOTOS EN BLANCO | AR28: 5 | AS28: 6 | AT28: 7 | AU28: 10 | BC28: =+SUM(D28:BB28) -> 28
B29: VOTOS NULOS | AR29: 1 | AS29: 3 | BC29: =+SUM(D29:BB29) -> 4
B30: TARJETONES SIN MARCAR | AR30: 3 | AT30: 1 | AU30: 4 | BC30: =+SUM(D30:BB30) -> 8
B31: TOTAL VOTOS | D31: =+SUM(D20:D30) -> 0 | E31: 0 | F31: 0 | G31: 0 | H31: 0 | I31: 0 | J31: 0 | K31: 0 | L31: 0 | M31: 0 | N31: 0 | O31: 0 | P31: 0 | Q31: 0 | R31: 0 | S31: 0 | T31: 0 | U31: 0 | V31: 0 | W31: 0 | X31: 0 | Y31: 0 | Z31: 0 | AA31: 0 | AB31: 0 | AC31: 0 | AD31: 0 | AE31: 0 | AF31: 0 | AG31: 0 | AH31: 0 | AI31: 0 | AJ31: 0 | AK31: 0 | AL31: 0 | AM31: 0 | AN31: 0 | AO31: 0 | AP31: 0 | AQ31: 0 | AR31: 84 | AS31: 54 | AT31: 67 | AU31: 98 | AV31: 0 | AW31: =+SUM(AW20:AW30) -> 0 | AX31: 0 | AY31: 0 | AZ31: 0 | BA31: 0 | BB31: 16 | BC31: 319
B34: CONSEJO FACULTAD DE BELLAS ARTES
B35: PLANCHA | C35: CANDIDATO | D35: M1 | E35: M2 | F35: M3 | G35: M4 | H35: M5 | I35: M6 | J35: M7 | K35: M8 | L35: M9 | M35: M10 | N35: M11 | O35: M12 | P35: M13 | Q35: M14 | R35: M15 | S35: M16 | T35: M17 | U35: M18 | V35: M19 | W35: M20 | X35: M21 | Y35: M22 | Z35: M23 | AA35: M24 | AB35: M25 | AC35: M26 | AD35: M27 | AE35: M28 | AF35: M29 | AG35: M30 | AH35: M31 | AI35: M32 | AJ35: M33 | AK35: M34 | AL35: M35 | AM35: M36 | AN35: M37 | AO35: M38 | AP35: M39 | AQ35: M40 | AR35: M41 | AS35: M42 | AT35: M43 | AU35: M44 | AV35: M45 | AW35: M46 | AX35: M47 | AY35: M48 | AZ35: M49 | BA35: M50 | BB35: M51 | BC35: TOTALES
B36: 9 | C36: BIBIANA FABIOLA HERNANDEZ SOLARTE | BA36: 51 | BB36: 0 | BC36: =+SUM(D36:BB37) -> 51
C37: GLORIA DE JESUS MALDONADO DE LA TORRE
B38: 10 | C38: RAFAEL EDUARDO BROCHERO DITA | BA38: 3 | BB38: 1 | BC38: =+SUM(D38:BB39) -> 4
C39: RICARDO FIDEL MONTENEGRO VEGA
B40: 11 | C40: DAIRO EFREN BARRIOSNUEVO MARIN | BA40: 57 | BB40: 0 | BC40: =+SUM(D40:BB41) -> 57
C41: ALEX ENRIQUE GALLARDO ALBA
B42: VOTOS EN BLANCO | BA42: 32 | BC42: =+SUM(D42:BB42) -> 32
B43: VOTOS NULOS | BA43: 6 | BC43: =+SUM(D43:BB43) -> 6
B44: TARJETONES SIN MARCAR | BC44: =SUM(D44:BB44) -> 0
B45: TOTAL VOTOS | D45: =+SUM(D36:D44) -> 0 | E45: 0 | F45: 0 | G45: 0 | H45: 0 | I45: 0 | J45: 0 | K45: 0 | L45: 0 | M45: 0 | N45: 0 | O45: 0 | P45: 0 | Q45: 0 | R45: 0 | S45: 0 | T45: 0 | U45: 0 | V45: 0 | W45: 0 | X45: 0 | Y45: 0 | Z45: 0 | AA45: 0 | AB45: 0 | AC45: 0 | AD45: 0 | AE45: 0 | AF45: 0 | AG45: 0 | AH45: 0 | AI45: 0 | AJ45: 0 | AK45: 0 | AL45: 0 | AM45: 0 | AN45: 0 | AO45: 0 | AP45: 0 | AQ45: 0 | AR45: 0 | AS45: 0 | AT45: 0 | AU45: 0 | AV45: 0 | AW45: 0 | AX45: 0 | AY45: 0 | AZ45: 0 | BA45: 149 | BB45: 1 | BC45: 150
B48: CONSEJO FACULTAD DE CIENCIAS BÁSICAS
B49: PLANCHA | C49: CANDIDATO | D49: M1 | E49: M2 | F49: M3 | G49: M4 | H49: M5 | I49: M6 | J49: M7 | K49: M8 | L49: M9 | M49: M10 | N49: M11 | O49: M12 | P49: M13 | Q49: M14 | R49: M15 | S49: M16 | T49: M17 | U49: M18 | V49: M19 | W49: M20 | X49: M21 | Y49: M22 | Z49: M23 | AA49: M24 | AB49: M25 | AC49: M26 | AD49: M27 | AE49: M28 | AF49: M29 | AG49: M30 | AH49: M31 | AI49: M32 | AJ49: M33 | AK49: M34 | AL49: M35 | AM49: M36 | AN49: M37 | AO49: M38 | AP49: M39 | AQ49: M40 | AR49: M41 | AS49: M42 | AT49: M43 | AU49: M44 | AV49: M45 | AW49: M46 | AX49: M47 | AY49: M48 | AZ49: M49 | BA49: M50 | BB49: M51 | BC49: TOTALES
B50: 12 | C50: LUIS RICARDO DIAZGRANADOS SALGADO | AP50: 60 | AQ50: 38 | BB50: 5 | BC50: =+SUM(D50:BB51) -> 103
C51: SANDRA MARCELA ARRIETA MARQUEZ
B52: 13 | C52: ANDRES FERNANDO POLO HERNANDEZ | AP52: 14 | AQ52: 39 | BC52: =+SUM(D52:BB53) -> 53
C53: FREDYS SANCHEZ CATALAN
B54: 14 | C54: DONALDO ANTONIO BURGOS HERNÁNDEZ | AP54: 32 | AQ54: 29 | BC54: =+SUM(D54:BB55) -> 61
C55: MARIA ANGELICA SERJE ARIAS
A56: . | B56: VOTOS EN BLANCO | AP56: 18 | AQ56: 14 | BC56: =+SUM(D56:BB56) -> 32
A57: . | B57: VOTOS NULOS | AP57: 5 | BC57: =+SUM(D57:BB57) -> 5
B58: TARJETONES SIN MARCAR | AQ58: 1 | BC58: =+SUM(D58:BB58) -> 1
B59: TOTAL VOTOS | D59: =+SUM(D50:D58) -> 0 | E59: 0 | F59: 0 | G59: 0 | H59: 0 | I59: 0 | J59: 0 | K59: 0 | L59: 0 | M59: 0 | N59: 0 | O59: 0 | P59: 0 | Q59: 0 | R59: 0 | S59: 0 | T59: 0 | U59: 0 | V59: 0 | W59: 0 | X59: 0 | Y59: 0 | Z59: 0 | AA59: 0 | AB59: 0 | AC59: 0 | AD59: 0 | AE59: 0 | AF59: 0 | AG59: 0 | AH59: 0 | AI59: 0 | AJ59: =+SUM(AJ50:AJ58) -> 0 | AK59: 0 | AL59: 0 | AM59: 0 | AN59: 0 | AO59: 0 | AP59: 129 | AQ59: 121 | AR59: 0 | AS59: 0 | AT59: 0 | AU59: 0 | AV59: 0 | AW59: 0 | AX59: 0 | AY59: 0 | AZ59: 0 | BA59: 0 | BB59: 5 | BC59: 255
B62: CONSEJO FACULTAD CIENCIAS DE LA EDUCACIÓN
B63: PLANCHA | C63: CANDIDATO | D63: M1 | E63: M2 | F63: M3 | G63: M4 | H63: M5 | I63: M6 | J63: M7 | K63: M8 | L63: M9 | M63: M10 | N63: M11 | O63: M12 | P63: M13 | Q63: M14 | R63: M15 | S63: M16 | T63: M17 | U63: M18 | V63: M19 | W63: M20 | X63: M21 | Y63: M22 | Z63: M23 | AA63: M24 | AB63: M25 | AC63: M26 | AD63: M27 | AE63: M28 | AF63: M29 | AG63: M30 | AH63: M31 | AI63: M32 | AJ63: M33 | AK63: M34 | AL63: M35 | AM63: M36 | AN63: M37 | AO63: M38 | AP63: M39 | AQ63: M40 | AR63: M41 | AS63: M42 | AT63: M43 | AU63: M44 | AV63: M45 | AW63: M46 | AX63: M47 | AY63: M48 | AZ63: M49 | BA63: M50 | BB63: M51 | BC63: TOTALES
B64: 15 | C64: JORGE VIANA RODRIGUEZ | D64: 7 | E64: 13 | F64: 4 | G64: 9 | H64: 5 | I64: 12 | J64: 9 | K64: 6 | L64: 11 | M64: 8 | N64: 7 | O64: 4 | P64: 5 | Q64: 8 | R64: 15 | S64: 11 | T64: 6 | U64: 5 | BB64: 6 | BC64: =+SUM(D64:BB65) -> 151
C65: CARLOS EMILIO CAMARGO GUZMAN
B66: 16 | C66: LUIS CARLOS RIQUET ALEMAN | D66: 57 | E66: 81 | F66: 20 | G66: 76 | H66: 68 | I66: 66 | J66: 56 | K66: 67 | L66: 91 | M66: 46 | N66: 25 | O66: 60 | P66: 94 | Q66: 53 | R66: 65 | S66: 50 | T66: 58 | U66: 26 | BB66: 41 | BC66: =+SUM(D66:BB67) -> 1100
C67: RICARDO MANUEL VILLEGAS PADILLA
B68: 17 | C68: HUGO HUMBERTO BUELVAS FONTALVO | D68: 11 | E68: 9 | F68: 3 | G68: 8 | H68: 12 | I68: 9 | J68: 6 | K68: 9 | L68: 9 | M68: 2 | N68: 2 | O68: 4 | P68: 5 | Q68: 11 | R68: 7 | S68: 14 | T68: 8 | U68: 6 | BB68: 9 | BC68: =+SUM(D68:BB69) -> 144
C69: FARID MIGUEL VASQUEZ CASTRO
B70: 18 | C70: BRENDA VALENTINA PIANETA CANTILLO | D70: 22 | E70: 27 | F70: 18 | G70: 43 | H70: 46 | I70: 31 | J70: 25 | K70: 38 | L70: 43 | M70: 24 | N70: 19 | O70: 17 | P70: 35 | Q70: 22 | R70: 44 | S70: 42 | T70: 27 | U70: 29 | BB70: 28 | BC70: =+SUM(D70:BB71) -> 580
C71: ANGELA TRILLOS MERCADO
B72: 19 | C72: JOAQUIN RAFAEL MOLINA ESCORCIA | D72: 58 | E72: 98 | F72: 26 | G72: 80 | H72: 52 | I72: 40 | J72: 75 | K72: 92 | L72: 55 | M72: 43 | N72: 29 | O72: 42 | P72: 75 | Q72: 35 | R72: 41 | S72: 51 | T72: 43 | U72: 29 | BB72: 75 | BC72: =+SUM(D72:BB73) -> 1039
C73: DIANA LUZ SALAS MARTINEZ
B74: 20 | C74: RAFAEL RUBEN ROMO SANCHEZ | D74: 4 | E74: 4 | F74: 0 | G74: 4 | H74: 3 | I74: 4 | J74: 4 | K74: 6 | L74: 4 | M74: 1 | N74: 1 | O74: 5 | P74: 2 | Q74: 5 | R74: 1 | S74: 2 | T74: 3 | BB74: 4 | BC74: =+SUM(D74:BB75) -> 57
C75: HECTOR ENRIQUE TORRENEGRA AYALA
B76: 21 | C76: MARTHA DE JESUS MONTENEGRO GONZALEZ | D76: 13 | E76: 15 | F76: 6 | G76: 25 | H76: 12 | I76: 9 | J76: 22 | K76: 24 | L76: 24 | M76: 11 | N76: 6 | O76: 12 | P76: 17 | Q76: 8 | R76: 7 | S76: 11 | T76: 10 | U76: 6 | BB76: 12 | BC76: =+SUM(D76:BB77) -> 250
C77: MARLENE OCHOA MARTINEZ
B78: VOTOS EN BLANCO | D78: 24 | E78: 42 | F78: 9 | G78: 29 | H78: 39 | I78: 19 | J78: 25 | K78: 38 | L78: 34 | M78: 19 | N78: 17 | O78: 32 | P78: 43 | Q78: 29 | R78: 32 | S78: 40 | T78: 32 | U78: 28 | BB78: 15 | BC78: =+SUM(D78:BB78) -> 546
B79: VOTOS NULOS | D79: 12 | E79: 2 | H79: 1 | J79: 1 | K79: 1 | M79: 1 | P79: 1 | R79: 1 | S79: 1 | T79: 2 | U79: 3 | BB79: 2 | BC79: =+SUM(D79:BB79) -> 28
B80: TARJETONES SIN MARCAR | D80: 6 | E80: 6 | F80: 10 | G80: 18 | H80: 23 | J80: 11 | K80: 7 | L80: 12 | M80: 2 | N80: 4 | O80: 7 | P80: 2 | Q80: 5 | R80: 7 | S80: 3 | T80: 12 | U80: 2 | BB80: 4 | BC80: =+SUM(D80:BB80) -> 141
B81: TOTAL VOTOS | D81: =+SUM(D64:D80) -> 214 | E81: 297 | F81: 96 | G81: 292 | H81: 261 | I81: 190 | J81: 234 | K81: 288 | L81: 283 | M81: 157 | N81: 110 | O81: 183 | P81: 279 | Q81: 176 | R81: 220 | S81: 225 | T81: 201 | U81: 134 | V81: 0 | W81: 0 | X81: 0 | Y81: 0 | Z81: 0 | AA81: 0 | AB81: 0 | AC81: 0 | AD81: 0 | AE81: 0 | AF81: 0 | AG81: 0 | AH81: 0 | AI81: 0 | AJ81: 0 | AK81: 0 | AL81: 0 | AM81: 0 | AN81: 0 | AO81: 0 | AP81: 0 | AQ81: 0 | AR81: 0 | AS81: 0 | AT81: 0 | AU81: 0 | AV81: 0 | AW81: =+SUM(AW64:AW80) -> 0 | AX81: 0 | AY81: 0 | AZ81: 0 | BA81: 0 | BB81: 196 | BC81: 4036
B84: CONSEJO DE FACULTAD DE CIENCIAS ECONÓMICAS
B85: PLANCHA | C85: CANDIDATO | D85: M1 | E85: M2 | F85: M3 | G85: M4 | H85: M5 | I85: M6 | J85: M7 | K85: M8 | L85: M9 | M85: M10 | N85: M11 | O85: M12 | P85: M13 | Q85: M14 | R85: M15 | S85: M16 | T85: M17 | U85: M18 | V85: M19 | W85: M20 | X85: M21 | Y85: M22 | Z85: M23 | AA85: M24 | AB85: M25 | AC85: M26 | AD85: M27 | AE85: M28 | AF85: M29 | AG85: M30 | AH85: M31 | AI85: M32 | AJ85: M33 | AK85: M34 | AL85: M35 | AM85: M36 | AN85: M37 | AO85: M38 | AP85: M39 | AQ85: M40 | AR85: M41 | AS85: M42 | AT85: M43 | AU85: M44 | AV85: M45 | AW85: M46 | AX85: M47 | AY85: M48 | AZ85: M49 | BA85: M50 | BB85: M51 | BC85: TOTALES
B86: 22 | C86: EDER POLO SANDOVAL | AA86: 10 | AB86: 14 | AC86: 14 | AD86: 12 | AE86: 20 | AF86: 21 | AG86: 24 | AH86: 26 | AI86: 12 | AJ86: 11 | BB86: 3 | BC86: =+SUM(D86:BB87) -> 167
C87: ALEXANDER CANTILLO MARQUEZ
B88: 23 | C88: ELIANA MERCEDES NOVOA BOHORQUEZ | AA88: 12 | AB88: 24 | AC88: 20 | AD88: 24 | AE88: 17 | AF88: 12 | AG88: 8 | AH88: 22 | AI88: 21 | AJ88: 38 | BB88: 0 | BC88: =+SUM(D88:BB89) -> 198
C89: MELINA JOSE DE LA ROSA PEREZ
B90: 24 | C90: JAVIER JOSE NUÑEZ AMARIS | AA90: 4 | AB90: 3 | AC90: 5 | AD90: 2 | AE90: 4 | AF90: 5 | AG90: 5 | AH90: 2 | AI90: 2 | AJ90: 0 | BB90: 1 | BC90: =+SUM(D90:BB91) -> 33
C91: GUIDO RAFAEL TEHERAN MARTINEZ
B92: 25 | C92: YARITZA PAOLA GONZALEZ PEREA | AA92: 14 | AB92: 11 | AC92: 12 | AD92: 6 | AE92: 15 | AF92: 14 | AG92: 21 | AH92: 19 | AI92: 41 | AJ92: 33 | BB92: 1 | BC92: =+SUM(D92:BB93) -> 187
C93: JOSE RAFAEL PUA ORTEGA
B94: 26 | C94: IVAN RENE TOVAR JIMENEZ | AA94: 22 | AB94: 36 | AC94: 23 | AD94: 21 | AE94: 31 | AF94: 14 | AG94: 37 | AH94: 17 | AI94: 24 | AJ94: 27 | BB94: 1 | BC94: =+SUM(D94:BB95) -> 253
C95: JOSE LUIS BOLAÑO RIVERA
B96: 27 | C96: FABIAN ENRIQUE MONSALVO OLMOS | AA96: 4 | AB96: 10 | AC96: 6 | AD96: 14 | AE96: 4 | AF96: 17 | AG96: 14 | AH96: 3 | AI96: 4 | AJ96: 2 | BB96: 0 | BC96: =+SUM(D96:BB97) -> 78
C97: CINDY JOHANA ROMERO MERCADO
B98: 28 | C98: RESNITH ALBERTO CABALLERO CONTRERA | AA98: 10 | AB98: 18 | AC98: 8 | AD98: 0 | AE98: 2 | AF98: 6 | AG98: 2 | AH98: 1 | AI98: 0 | AJ98: 1 | BB98: 4 | BC98: =+SUM(D98:BB99) -> 52
C99: NICOLAS MIGUEL OLIVO ANGULO
B100: VOTOS EN BLANCO | AA100: 10 | AB100: 11 | AC100: 12 | AD100: 6 | AE100: 12 | AF100: 12 | AG100: 12 | AH100: 9 | AI100: 17 | AJ100: 4 | BB100: 1 | BC100: =+SUM(D100:BB100) -> 106
B101: VOTOS NULOS | AA101: 7 | AB101: 0 | AC101: 0 | AD101: 4 | AE101: 2 | AF101: 1 | AG101: 1 | AH101: 0 | AI101: 0 | AJ101: 0 | BB101: 1 | BC101: =+SUM(D101:BB101) -> 16
B102: TARJETONES SIN MARCAR | AA102: 0 | AB102: 7 | AC102: 4 | AD102: 0 | AE102: 0 | AF102: 0 | AG102: 1 | AH102: 0 | AI102: 1 | AJ102: 0 | BB102: 2 | BC102: =+SUM(D102:BB102) -> 15
B103: TOTAL VOTOS | D103: =+SUM(D86:D102) -> 0 | E103: 0 | F103: 0 | G103: 0 | H103: 0 | I103: 0 | J103: 0 | K103: 0 | L103: 0 | M103: 0 | N103: 0 | O103: 0 | P103: 0 | Q103: 0 | R103: 0 | S103: 0 | T103: 0 | U103: 0 | V103: 0 | W103: 0 | X103: 0 | Y103: 0 | Z103: 0 | AA103: 93 | AB103: 134 | AC103: 104 | AD103: 89 | AE103: 107 | AF103: 102 | AG103: 125 | AH103: 99 | AI103: 122 | AJ103: 116 | AK103: 0 | AL103: 0 | AM103: 0 | AN103: 0 | AO103: 0 | AP103: 0 | AQ103: 0 | AR103: 0 | AS103: 0 | AT103: 0 | AU103: 0 | AV103: 0 | AW103: =+SUM(AW86:AW102) -> 0 | AX103: 0 | AY103: 0 | AZ103: 0 | BA103: 0 | BB103: 14 | BC103: 1105
B106: CONSEJO FACULTAD DE CIENCIAS HUMANAS
B107: PLANCHA | C107: CANDIDATO | D107: M1 | E107: M2 | F107: M3 | G107: M4 | H107: M5 | I107: M6 | J107: M7 | K107: M8 | L107: M9 | M107: M10 | N107: M11 | O107: M12 | P107: M13 | Q107: M14 | R107: M15 | S107: M16 | T107: M17 | U107: M18 | V107: M19 | W107: M20 | X107: M21 | Y107: M22 | Z107: M23 | AA107: M24 | AB107: M25 | AC107: M26 | AD107: M27 | AE107: M28 | AF107: M29 | AG107: M30 | AH107: M31 | AI107: M32 | AJ107: M33 | AK107: M34 | AL107: M35 | AM107: M36 | AN107: M37 | AO107: M38 | AP107: M39 | AQ107: M40 | AR107: M41 | AS107: M42 | AT107: M43 | AU107: M44 | AV107: M45 | AW107: M46 | AX107: M47 | AY107: M48 | AZ107: M49 | BA107: M50 | BB107: M51 | BC107: TOTALES
B108: 29 | C108: CRISTIAN DE JESUS ANDION ANGULO | AX108: 25 | BB108: 1 | BC108: =+SUM(D108:BB109) -> 26
C109: MIGUEL ANGELLO RHENALS DIAZ
B110: 30 | C110: MOISES DAVID MARIMON PERALTA | AX110: 64 | BB110: 0 | BC110: =+SUM(D110:BB111) -> 64
C111: ANGELICA PATRICIA SANTIS NOVA
B112: 31 | C112: FABIO JOSE MENDOZA DIAZ | AX112: 18 | BB112: 0 | BC112: =+SUM(D112:BB113) -> 18
C113: OMAR JOSE RODRIGUEZ CANENCIA
B114: VOTOS EN BLANCO | AX114: 17 | BB114: 1 | BC114: =+SUM(D114:BB114) -> 18
B115: VOTOS NULOS | AX115: 2 | BB115: 0 | BC115: =+SUM(D115:BB115) -> 2
B116: TARJETONES SIN MARCAR | AX116: 0 | BB116: 0 | BC116: =+SUM(D116:BB116) -> 0
B117: TOTAL VOTOS | D117: =+SUM(D108:D116) -> 0 | E117: 0 | F117: 0 | G117: 0 | H117: 0 | I117: 0 | J117: 0 | K117: 0 | L117: 0 | M117: 0 | N117: 0 | O117: 0 | P117: 0 | Q117: 0 | R117: 0 | S117: 0 | T117: 0 | U117: 0 | V117: 0 | W117: 0 | X117: 0 | Y117: 0 | Z117: 0 | AA117: 0 | AB117: 0 | AC117: 0 | AD117: 0 | AE117: 0 | AF117: 0 | AG117: 0 | AH117: 0 | AI117: 0 | AJ117: 0 | AK117: 0 | AL117: 0 | AM117: 0 | AN117: 0 | AO117: 0 | AP117: 0 | AQ117: 0 | AR117: 0 | AS117: 0 | AT117: 0 | AU117: 0 | AV117: 0 | AW117: =+SUM(AW108:AW116) -> 0 | AX117: 126 | AY117: 0 | AZ117: 0 | BA117: 0 | BB117: 2 | BC117: 128
B120: CONSEJO DE FACULTAD DE CIENCIAS JURÍDICAS
B121: PLANCHA | C121: CANDIDATO | D121: M1 | E121: M2 | F121: M3 | G121: M4 | H121: M5 | I121: M6 | J121: M7 | K121: M8 | L121: M9 | M121: M10 | N121: M11 | O121: M12 | P121: M13 | Q121: M14 | R121: M15 | S121: M16 | T121: M17 | U121: M18 | V121: M19 | W121: M20 | X121: M21 | Y121: M22 | Z121: M23 | AA121: M24 | AB121: M25 | AC121: M26 | AD121: M27 | AE121: M28 | AF121: M29 | AG121: M30 | AH121: M31 | AI121: M32 | AJ121: M33 | AK121: M34 | AL121: M35 | AM121: M36 | AN121: M37 | AO121: M38 | AP121: M39 | AQ121: M40 | AR121: M41 | AS121: M42 | AT121: M43 | AU121: M44 | AV121: M45 | AW121: M46 | AX121: M47 | AY121: M48 | AZ121: M49 | BA121: M50 | BB121: M51 | BC121: TOTALES
B122: 32 | C122: KAREN YOHANA GALVIS ESPITIA | V122: 42 | W122: 32 | X122: 37 | Y122: 75 | Z122: 72 | BB122: 2 | BC122: =+SUM(D122:BB123) -> 260
C123: ALBERTO RAFAEL MOLINA RAMOS
B124: 33 | C124: HILDA ROSA BUSTILLO FIERRO | V124: 28 | W124: 20 | X124: 29 | Y124: 16 | Z124: 12 | BB124: 12 | BC124: =+SUM(D124:BB125) -> 117
C125: ROLANDO ALBERTO GERLEIN MARTINEZ
B126: 34 | C126: MAYERLIN PADILLA FONTALVO | V126: 32 | W126: 18 | X126: 28 | Y126: 34 | Z126: 13 | BB126: 2 | BC126: =+SUM(D126:BB127) -> 127
C127: LUIS EDUARDO ALARCON PRADA
B128: 35 | C128: ESTEFANY DEL CARMEN ARROYO ESCUDERO | V128: 13 | W128: 4 | X128: 16 | Y128: 7 | Z128: 37 | BB128: 4 | BC128: =+SUM(D128:BB129) -> 81
C129: KIMBERLY ZARITH VILLANUEVA LOPEZ
B130: 36 | C130: ANUAR EMUL DIAZ ATENCIA | V130: 12 | W130: 8 | X130: 6 | Y130: 10 | Z130: 33 | BB130: 0 | BC130: =+SUM(D130:BB131) -> 69
C131: JANNETH MARIA GALAVIS LOPEZ
B132: 37 | C132: HARLEY MANOTAS DE LA HOZ | V132: 12 | W132: 11 | X132: 18 | Y132: 18 | Z132: 49 | BB132: 2 | BC132: =+SUM(D132:BB133) -> 110
C133: JESUS ANTONIO LAZARO SALCEDO
B134: 38 | C134: PATRICIA ELENA VIEDMA GONZALEZ | V134: 17 | W134: 26 | X134: 28 | Y134: 34 | Z134: 8 | BB134: 6 | BC134: =+SUM(D134:BB135) -> 119
C135: BLEYDIS MARIA FIGUEROA PALACIO
B136: VOTOS EN BLANCO | V136: 11 | W136: 12 | X136: 4 | Y136: 14 | Z136: 10 | BB136: 1 | BC136: =+SUM(D136:BB136) -> 52
B137: VOTOS NULOS | V137: 2 | W137: 0 | X137: 0 | Y137: 1 | Z137: 2 | BB137: 0 | BC137: =+SUM(D137:BB137) -> 5
B138: TARJETONES SIN MARCAR | V138: 4 | W138: 7 | X138: 2 | Z138: 2 | BB138: 0 | BC138: =+SUM(D138:BB138) -> 15
B139: TOTAL VOTOS | D139: =+SUM(D122:D138) -> 0 | E139: 0 | F139: 0 | G139: 0 | H139: 0 | I139: 0 | J139: 0 | K139: 0 | L139: 0 | M139: 0 | N139: 0 | O139: 0 | P139: 0 | Q139: 0 | R139: 0 | S139: 0 | T139: 0 | U139: 0 | V139: 173 | W139: 138 | X139: 168 | Y139: 209 | Z139: 238 | AA139: 0 | AB139: 0 | AC139: 0 | AD139: 0 | AE139: 0 | AF139: 0 | AG139: 0 | AH139: 0 | AI139: 0 | AJ139: 0 | AK139: 0 | AL139: 0 | AM139: 0 | AN139: 0 | AO139: 0 | AP139: 0 | AQ139: 0 | AR139: 0 | AS139: 0 | AT139: 0 | AU139: 0 | AV139: 0 | AW139: =+SUM(AW122:AW138) -> 0 | AX139: 0 | AY139: 0 | AZ139: 0 | BA139: 0 | BB139: 29 | BC139: 955
B142: CONSEJO DE FACULTAD DE INGENIERÍA
B143: PLANCHA | C143: CANDIDATO | D143: M1 | E143: M2 | F143: M3 | G143: M4 | H143: M5 | I143: M6 | J143: M7 | K143: M8 | L143: M9 | M143: M10 | N143: M11 | O143: M12 | P143: M13 | Q143: M14 | R143: M15 | S143: M16 | T143: M17 | U143: M18 | V143: M19 | W143: M20 | X143: M21 | Y143: M22 | Z143: M23 | AA143: M24 | AB143: M25 | AC143: M26 | AD143: M27 | AE143: M28 | AF143: M29 | AG143: M30 | AH143: M31 | AI143: M32 | AJ143: M33 | AK143: M34 | AL143: M35 | AM143: M36 | AN143: M37 | AO143: M38 | AP143: M39 | AQ143: M40 | AR143: M41 | AS143: M42 | AT143: M43 | AU143: M44 | AV143: M45 | AW143: M46 | AX143: M47 | AY143: M48 | AZ143: M49 | BA143: M50 | BB143: M51 | BC143: TOTALES
B144: 39 | C144: NICOLAS SOLANO CONDE | AK144: 10 | AL144: 12 | AM144: 21 | AN144: 3 | AO144: 1 | BB144: 1 | BC144: =+SUM(D144:BB145) -> 48
C145: ORLANDO RAFAEL MONTIEL ORTEGA
B146: 40 | C146: STEPHANNY JULIETH YARALA DUARTE | AK146: 11 | AL146: 10 | AM146: 16 | AN146: 34 | AO146: 41 | BB146: 0 | BC146: =+SUM(D146:BB147) -> 112
C147: BETTY YANILETH PUELLO BORRERO
B148: 41 | C148: KATIUSCA VANESSA FLOREZ ROSALES | AK148: 8 | AL148: 7 | AM148: 7 | AN148: 17 | AO148: 16 | BB148: 2 | BC148: =+SUM(D148:BB149) -> 57
C149: JUAN GUILLERMO COHEN FONTALVO
B150: 42 | C150: MARIA BERNARDA ALVARADO BAWAB | AK150: 13 | AL150: 17 | AM150: 10 | AN150: 14 | AO150: 12 | BB150: 4 | BC150: =+SUM(D150:BB151) -> 70
C151: CARLOS EDUARDO HERNANDEZ LALINDE
B152: 43 | C152: CLAUDIA ISABEL RIVERA FONTALVO | AK152: 3 | AL152: 18 | AM152: 14 | AN152: 4 | AO152: 5 | BB152: 0 | BC152: =+SUM(D152:BB153) -> 44
C153: HOLLMANG MARLON SALTARIN VILORIA
B154: 44 | C154: LUIS GERARDO ALMANZA LLANOS | AK154: 0 | AL154: 4 | AM154: 8 | AN154: 2 | AO154: 1 | BB154: 0 | BC154: =+SUM(D154:BB155) -> 15
C155: ANDRES MAURICIO ROCHA MOLINA
B156: 45 | C156: WILSON JOSE HERRERA BALLESTAS | AK156: 4 | AL156: 6 | AM156: 15 | AN156: 12 | AO156: 3 | BB156: 0 | BC156: =+SUM(D156:BB157) -> 40
C157: ENRIQUE ALFONSO GARCIA PELUFFO
B158: VOTOS EN BLANCO | AK158: 17 | AL158: 1 | AM158: 10 | AN158: 6 | AO158: 11 | BB158: 1 | BC158: =+SUM(D158:BB158) -> 46
B159: VOTOS NULOS | AK159: 0 | AM159: 1 | AN159: 1 | AO159: 2 | BB159: 0 | BC159: =+SUM(D159:BB159) -> 4
B160: TARJETONES SIN MARCAR | AK160: 2 | AM160: 1 | BB160: 0 | BC160: =+SUM(D160:BB160) -> 3
B161: TOTAL VOTOS | D161: =+SUM(D144:D160) -> 0 | E161: 0 | F161: 0 | G161: 0 | H161: 0 | I161: 0 | J161: 0 | K161: 0 | L161: 0 | M161: 0 | N161: 0 | O161: 0 | P161: 0 | Q161: 0 | R161: 0 | S161: 0 | T161: 0 | U161: 0 | V161: 0 | W161: 0 | X161: 0 | Y161: 0 | Z161: 0 | AA161: 0 | AB161: 0 | AC161: 0 | AD161: 0 | AE161: 0 | AF161: 0 | AG161: 0 | AH161: 0 | AI161: 0 | AJ161: 0 | AK161: 68 | AL161: 75 | AM161: 103 | AN161: 93 | AO161: 92 | AP161: 0 | AQ161: 0 | AR161: 0 | AS161: 0 | AT161: 0 | AU161: 0 | AV161: 0 | AW161: =+SUM(AW144:AW160) -> 0 | AX161: 0 | AY161: 0 | AZ161: 0 | BA161: 0 | BB161: 8 | BC161: 439
B164: CONSEJO FACULTAD DE NUTRICION Y DIETETICA
B165: PLANCHA | C165: CANDIDATO | D165: M1 | E165: M2 | F165: M3 | G165: M4 | H165: M5 | I165: M6 | J165: M7 | K165: M8 | L165: M9 | M165: M10 | N165: M11 | O165: M12 | P165: M13 | Q165: M14 | R165: M15 | S165: M16 | T165: M17 | U165: M18 | V165: M19 | W165: M20 | X165: M21 | Y165: M22 | Z165: M23 | AA165: M24 | AB165: M25 | AC165: M26 | AD165: M27 | AE165: M28 | AF165: M29 | AG165: M30 | AH165: M31 | AI165: M32 | AJ165: M33 | AK165: M34 | AL165: M35 | AM165: M36 | AN165: M37 | AO165: M38 | AP165: M39 | AQ165: M40 | AR165: M41 | AS165: M42 | AT165: M43 | AU165: M44 | AV165: M45 | AW165: M46 | AX165: M47 | AY165: M48 | AZ165: M49 | BA165: M50 | BB165: M51 | BC165: TOTALES
B166: 46 | C166: BASILIA SEGUNDA OROZCO OROZCO | AY166: 47 | AZ166: 30 | BB166: 2 | BC166: =+SUM(D166:BB167) -> 79
C167: LUCIA DEL CARMEN BARRIOS ZAMBRANO
B168: 47 | C168: ANTONIA ISABEL NIETO SANCHEZ | AY168: 28 | AZ168: 13 | BB168: 3 | BC168: =+SUM(D168:BB169) -> 44
C169: ONEIDA ELENA BAYONA BARROS
B170: 48 | C170: LUCINDA ESTHER REYES MARIMON | AY170: 26 | AZ170: 15 | BB170: 1 | BC170: =+SUM(D170:BB171) -> 42
C171: KAROLL DARLEY JIMENEZ LEON
B172: 49 | C172: IDANIS PAOLA DOMINGUEZ CALVO | AY172: 4 | AZ172: 16 | BB172: 0 | BC172: =+SUM(D172:BB173) -> 20
C173: JESSICA PAOLA CAMPO ESTRADA
B174: 50 | C174: JANIETH ANDREA CARVAJAL BARRETO | AY174: 0 | AZ174: 2 | BB174: 0 | BC174: =+SUM(D174:BB175) -> 2
C175: MARGARITA ROSA FIGUEROA DE AVILA
B176: VOTOS EN BLANCO | AY176: 7 | AZ176: 2 | BB176: 0 | BC176: =+SUM(D176:BB176) -> 9
B177: VOTOS NULOS | AY177: 1 | AZ177: 0 | BB177: 0 | BC177: =+SUM(D177:BB177) -> 1
B178: TARJETONES SIN MARCAR | AY178: 0 | AZ178: 2 | BB178: 0 | BC178: =+SUM(D178:BB178) -> 2
B179: TOTAL VOTOS | D179: =+SUM(D166:D178) -> 0 | E179: 0 | F179: 0 | G179: 0 | H179: 0 | I179: 0 | J179: 0 | K179: 0 | L179: 0 | M179: 0 | N179: 0 | O179: 0 | P179: 0 | Q179: 0 | R179: 0 | S179: 0 | T179: 0 | U179: 0 | V179: 0 | W179: 0 | X179: 0 | Y179: 0 | Z179: 0 | AA179: 0 | AB179: 0 | AC179: 0 | AD179: 0 | AE179: 0 | AF179: 0 | AG179: 0 | AH179: 0 | AI179: 0 | AJ179: 0 | AK179: 0 | AL179: 0 | AM179: 0 | AN179: 0 | AO179: 0 | AP179: 0 | AQ179: 0 | AR179: 0 | AS179: 0 | AT179: 0 | AU179: 0 | AV179: 0 | AW179: =+SUM(AW166:AW178) -> 0 | AX179: 0 | AY179: 113 | AZ179: 80 | BA179: 0 | BB179: 6 | BC179: 199
B182: CONSEJO DE FACULTAD DE QUÍMICA Y FARMACIA
B183: PLANCHA | C183: CANDIDATO | D183: M1 | E183: M2 | F183: M3 | G183: M4 | H183: M5 | I183: M6 | J183: M7 | K183: M8 | L183: M9 | M183: M10 | N183: M11 | O183: M12 | P183: M13 | Q183: M14 | R183: M15 | S183: M16 | T183: M17 | U183: M18 | V183: M19 | W183: M20 | X183: M21 | Y183: M22 | Z183: M23 | AA183: M24 | AB183: M25 | AC183: M26 | AD183: M27 | AE183: M28 | AF183: M29 | AG183: M30 | AH183: M31 | AI183: M32 | AJ183: M33 | AK183: M34 | AL183: M35 | AM183: M36 | AN183: M37 | AO183: M38 | AP183: M39 | AQ183: M40 | AR183: M41 | AS183: M42 | AT183: M43 | AU183: M44 | AV183: M45 | AW183: M46 | AX183: M47 | AY183: M48 | AZ183: M49 | BA183: M50 | BB183: M51 | BC183: TOTALES
B184: 51 | C184: JULIO CESAR BAYUELO FLOREZ | AV184: 6 | AW184: 3 | BB184: 0 | BC184: =+SUM(D184:BB185) -> 9
C185: DANIEL TRESPALACIOS RODRIGUEZ
B186: 52 | C186: ADALBERTO FELIX SEVILLA SERNA | AV186: 86 | AW186: 78 | BB186: 2 | BC186: =+SUM(D186:BB187) -> 166
C187: MARTIN LUIS ALVIS SERRANO
B188: VOTOS EN BLANCO | AV188: 22 | AW188: 40 | BB188: 2 | BC188: =+SUM(D188:BB188) -> 64
B189: VOTOS NULOS | AV189: 4 | BB189: 0 | BC189: =+SUM(D189:BB189) -> 4
B190: TARJETONES SIN MARCAR | AV190: 0 | BB190: 0 | BC190: =+SUM(D190:BB190) -> 0
B191: TOTAL VOTOS | D191: =+SUM(D184:D190) -> 0 | E191: 0 | F191: 0 | G191: 0 | H191: 0 | I191: 0 | J191: 0 | K191: 0 | L191: 0 | M191: 0 | N191: 0 | O191: 0 | P191: 0 | Q191: 0 | R191: 0 | S191: 0 | T191: 0 | U191: 0 | V191: 0 | W191: 0 | X191: 0 | Y191: 0 | Z191: 0 | AA191: 0 | AB191: 0 | AC191: 0 | AD191: 0 | AE191: 0 | AF191: 0 | AG191: 0 | AH191: 0 | AI191: 0 | AJ191: 0 | AK191: 0 | AL191: 0 | AM191: 0 | AN191: 0 | AO191: 0 | AP191: 0 | AQ191: 0 | AR191: 0 | AS191: 0 | AT191: 0 | AU191: 0 | AV191: 118 | AW191: =+SUM(AW184:AW190) -> 121 | AX191: 0 | AY191: 0 | AZ191: 0 | BA191: 0 | BB191: 4 | BC191: 243

Sheet SUPERIOR
F1: Elecciones de representantes de los egresados 2017
C4: CONSEJO SUPERIOR
K6: TOTAL
H7: =MESAS!C4 -> LEONARDO DAVID NIEBLES NUÑEZ | K7: =MESAS!BC4 -> 0
H9: =MESAS!C5 -> MIGUEL ANGEL RAMOS PALM
H11: =MESAS!C6 -> LEYTON DANIEL BARRIOS TORRES | K11: =MESAS!BC6 -> 4253
H13: =MESAS!C7 -> WILLIAM LUENGAS CUELLO
H15: =MESAS!C8 -> LINO JUNIOR PEREIRA MONTERROZA | K15: =MESAS!BC8 -> 44
H17: =MESAS!C9 -> JESUS ROBERTO MACHACON ORTIZ
H19: =MESAS!C10 -> GUSTAVO HUMBERTO ROJAS MORALES | K19: =MESAS!BC10 -> 3098
H20: =MESAS!C11 -> MEDARDO HUMBERTO DRAGO LEON
K24: TOTAL
H25: VOTOS EN BLANCO | K25: =MESAS!BC12 -> 360
K28: TOTAL
H29: VOTOS NULOS | K29: =MESAS!BC13 -> 69
K32: TOTAL
H33: TARJETONES SIN MARCAR | K33: =MESAS!BC14 -> 11
G38: VOTOS TOTALES | K38: =MESAS!BC15 -> 7835

Sheet ARQUITECTURA
F1: =SUPERIOR!F1 -> Elecciones de representantes de los egresados 2017
C4: CONSEJO DE FACULTAD DE ARQUITECTURA
K6: TOTAL
H7: =MESAS!C20 -> JOSE CARLOS CAMPO ORTIZ | K7: =MESAS!BC20 -> 78
H9: =MESAS!C21 -> MARCOS CASTRO HENRIQUEZ
H11: =MESAS!C22 -> YEHOSHUA DAVID SANCHEZ BUELVAS | K11: =MESAS!BC22 -> 39
H13: =MESAS!C23 -> RICARDO ALFONSO FONSECA OSPINO
H15: =MESAS!C24 -> ALFONSO CAMARGO ALVAREZ | K15: =MESAS!BC24 -> 93
H17: =MESAS!C25 -> IVAN ARMANDO NAVARRO ARZUZA
H19: =MESAS!C26 -> MANUEL VICENTE LLINAS OSORIO | K19: =MESAS!BC26 -> 69
H21: =MESAS!C27 -> JOSE MIGUEL ORTEGA PISCIOTTI
K23: TOTAL
H24: VOTOS EN BLANCO | K24: =MESAS!BC28 -> 28
K27: TOTAL
H28: VOTOS NULOS | K28: =MESAS!BC29 -> 4
K31: TOTAL
H32: TARJETONES SIN MARCAR | K32: =MESAS!BC30 -> 8
G36: VOTOS TOTALES | K36: =MESAS!BC31 -> 319

Sheet BELLAS ARTES
F1: =SUPERIOR!F1 -> Elecciones de representantes de los egresados 2017
C4: CONSEJO FACULTAD DE BELLAS ARTES
K6: TOTAL
H7: =MESAS!C36 -> BIBIANA FABIOLA HERNANDEZ SOLARTE | K7: =MESAS!BC36 -> 51
H9: =MESAS!C37 -> GLORIA DE JESUS MALDONADO DE LA TORRE
H12: =MESAS!C38 -> RAFAEL EDUARDO BROCHERO DITA | K12: =MESAS!BC38 -> 4
H14: =MESAS!C39 -> RICARDO FIDEL MONTENEGRO VEGA
H16: =MESAS!C40 -> DAIRO EFREN BARRIOSNUEVO MARIN | K16: =MESAS!BC40 -> 57
H18: =MESAS!C41 -> ALEX ENRIQUE GALLARDO ALBA
K20: TOTAL
H21: VOTOS EN BLANCO | K21: =MESAS!BC42 -> 32
K24: TOTAL
H25: VOTOS NULOS | K25: =MESAS!BC43 -> 6
K28: TOTAL
H29: TARJETONES SIN MARCAR | K29: =MESAS!BC44 -> 0
G33: VOTOS TOTALES | K33: =MESAS!BC45 -> 150

Sheet CBASICAS
F1: =SUPERIOR!F1 -> Elecciones de representantes de los egresados 2017
C4: CONSEJO DE FACULTAD DE CIENCIAS BÁSICAS
K6: TOTAL
H7: =MESAS!C50 -> LUIS RICARDO DIAZGRANADOS SALGADO | K7: =MESAS!BC50 -> 103
H9: =MESAS!C51 -> SANDRA MARCELA ARRIETA MARQUEZ
H11: =MESAS!C52 -> ANDRES FERNANDO POLO HERNANDEZ | K11: =MESAS!BC52 -> 53
H13: =MESAS!C53 -> FREDYS SANCHEZ CATALAN
H15: =MESAS!C54 -> DONALDO ANTONIO BURGOS HERNÁNDEZ | K15: =MESAS!BC54 -> 61
H17: =MESAS!C55 -> MARIA ANGELICA SERJE ARIAS
K19: TOTAL
H20: VOTOS EN BLANCO | K20: =MESAS!BC56 -> 32
K23: TOTAL
H24: VOTOS NULOS | K24: =MESAS!BC57 -> 5
K27: TOTAL
H28: TARJETONES SIN MARCAR | K28: =MESAS!BC58 -> 1
G32: VOTOS TOTALES | K32: =MESAS!BC59 -> 255

Sheet EDUCACION
F1: =SUPERIOR!F1 -> Elecciones de representantes de los egresados 2017
C4: CONSEJO FACULTAD DE CIENCIAS DE LA EDUCACIÓN
K6: TOTAL
H7: =MESAS!C64 -> JORGE VIANA RODRIGUEZ | K7: =MESAS!BC64 -> 151
H9: =MESAS!C65 -> CARLOS EMILIO CAMARGO GUZMAN
H12: =MESAS!C66 -> LUIS CARLOS RIQUET ALEMAN | K12: =MESAS!BC66 -> 1100
H14: =MESAS!C67 -> RICARDO MANUEL VILLEGAS PADILLA
H17: =MESAS!C68 -> HUGO HUMBERTO BUELVAS FONTALVO | K17: =MESAS!BC68 -> 144
H19: =MESAS!C69 -> FARID MIGUEL VASQUEZ CASTRO
H22: =MESAS!C70 -> BRENDA VALENTINA PIANETA CANTILLO | K22: =MESAS!BC70 -> 580
H24: =MESAS!C71 -> ANGELA TRILLOS MERCADO
H27: =MESAS!C72 -> JOAQUIN RAFAEL MOLINA ESCORCIA | K27: =MESAS!BC72 -> 1039
H29: =MESAS!C73 -> DIANA LUZ SALAS MARTINEZ
H32: =MESAS!C74 -> RAFAEL RUBEN ROMO SANCHEZ | K32: =MESAS!BC74 -> 57
H34: =MESAS!C75 -> HECTOR ENRIQUE TORRENEGRA AYALA
H37: =MESAS!C76 -> MARTHA DE JESUS MONTENEGRO GONZALEZ | K37: =MESAS!BC76 -> 250
H39: =MESAS!C77 -> MARLENE OCHOA MARTINEZ
K40: TOTAL
H41: VOTOS EN BLANCO | K41: =MESAS!BC78 -> 546
K43: TOTAL
H44: VOTOS NULOS | K44: =MESAS!BC79 -> 28
K45: TOTAL
H46: TARJETONES SIN MARCAR | K46: =MESAS!BC80 -> 141
G50: VOTOS TOTALES | K50: =MESAS!BC81 -> 4036

Sheet ECONOMICAS
F1: =SUPERIOR!F1 -> Elecciones de representantes de los egresados 2017
C4: CONSEJO FACULTAD DE CIENCIAS ECONÓMICAS
K6: TOTAL
H7: =MESAS!C86 -> EDER POLO SANDOVAL | K7: =MESAS!BC86 -> 167
H9: =MESAS!C87 -> ALEXANDER CANTILLO MARQUEZ
H12: =MESAS!C88 -> ELIANA MERCEDES NOVOA BOHORQUEZ | K12: =MESAS!BC88 -> 198
H14: =MESAS!C89 -> MELINA JOSE DE LA ROSA PEREZ
H16: =MESAS!C90 -> JAVIER JOSE NUÑEZ AMARIS | K16: =MESAS!BC90 -> 33
H18: =MESAS!C91 -> GUIDO RAFAEL TEHERAN MARTINEZ
H20: =MESAS!C92 -> YARITZA PAOLA GONZALEZ PEREA | K20: =MESAS!BC92 -> 187
H22: =MESAS!C93 -> JOSE RAFAEL PUA ORTEGA
H24: =MESAS!C94 -> IVAN RENE TOVAR JIMENEZ | K24: =MESAS!BC94 -> 253
H26: =MESAS!C95 -> JOSE LUIS BOLAÑO RIVERA
H28: =MESAS!C96 -> FABIAN ENRIQUE MONSALVO OLMOS | K28: =MESAS!BC96 -> 78
H30: =MESAS!C97 -> CINDY JOHANA ROMERO MERCADO
H32: =MESAS!C98 -> RESNITH ALBERTO CABALLERO CONTRERA | K32: =MESAS!BC98 -> 52
H34: =MESAS!C99 -> NICOLAS MIGUEL OLIVO ANGULO
K36: TOTAL
H37: VOTOS EN BLANCO | K37: =MESAS!BC100 -> 106
K40: TOTAL
H41: VOTOS NULOS | K41: =MESAS!BC101 -> 16
K44: TOTAL
H45: TARJETONES SIN MARCAR | K45: =MESAS!BC102 -> 15
G49: VOTOS TOTALES | K49: =MESAS!BC103 -> 1105

Sheet CHUMANAS
F1: =SUPERIOR!F1 -> Elecciones de representantes de los egresados 2017
C4: CONSEJO DE FACULTAD DE CIENCIAS HUMANAS
K6: TOTAL
H7: =MESAS!C108 -> CRISTIAN DE JESUS ANDION ANGULO | K7: =MESAS!BC108 -> 26
H9: =MESAS!C109 -> MIGUEL ANGELLO RHENALS DIAZ
H11: =MESAS!C110 -> MOISES DAVID MARIMON PERALTA | K11: =MESAS!BC110 -> 64
H13: =MESAS!C111 -> ANGELICA PATRICIA SANTIS NOVA
H15: =MESAS!C112 -> FABIO JOSE MENDOZA DIAZ | K15: =MESAS!BC112 -> 18
H17: =MESAS!C113 -> OMAR JOSE RODRIGUEZ CANENCIA
K21: TOTAL
H22: VOTOS EN BLANCO | K22: =MESAS!BC114 -> 18
K25: TOTAL
H26: VOTOS NULOS | K26: =MESAS!BC115 -> 2
K29: TOTAL
H30: TARJETONES SIN MARCAR | K30: =MESAS!BC116 -> 0
G34: VOTOS TOTALES | K34: =MESAS!BC117 -> 128

Sheet JURIDICAS
F1: =SUPERIOR!F1 -> Elecciones de representantes de los egresados 2017
C4: CONSEJO FACULTAD DE CIENCIAS JURÍDICAS
K6: TOTAL
H7: =MESAS!C122 -> KAREN YOHANA GALVIS ESPITIA | K7: =MESAS!BC122 -> 260
H9: =MESAS!C123 -> ALBERTO RAFAEL MOLINA RAMOS
H12: =MESAS!C124 -> HILDA ROSA BUSTILLO FIERRO | K12: =MESAS!BC124 -> 117
H14: =MESAS!C125 -> ROLANDO ALBERTO GERLEIN MARTINEZ
H16: =MESAS!C126 -> MAYERLIN PADILLA FONTALVO | K16: =MESAS!BC126 -> 127
H18: =MESAS!C127 -> LUIS EDUARDO ALARCON PRADA
H20: =MESAS!C128 -> ESTEFANY DEL CARMEN ARROYO ESCUDERO | K20: =MESAS!BC128 -> 81
H22: =MESAS!C129 -> KIMBERLY ZARITH VILLANUEVA LOPEZ
H24: =MESAS!C130 -> ANUAR EMUL DIAZ ATENCIA | K24: =MESAS!BC130 -> 69
H26: =MESAS!C131 -> JANNETH MARIA GALAVIS LOPEZ
H28: =MESAS!C132 -> HARLEY MANOTAS DE LA HOZ | K28: =MESAS!BC132 -> 110
H30: =MESAS!C133 -> JESUS ANTONIO LAZARO SALCEDO
H32: =MESAS!C134 -> PATRICIA ELENA VIEDMA GONZALEZ | K32: =MESAS!BC134 -> 119
H34: =MESAS!C135 -> BLEYDIS MARIA FIGUEROA PALACIO
K38: TOTAL
H39: VOTOS EN BLANCO | K39: =MESAS!BC136 -> 52
K42: TOTAL
H43: VOTOS NULOS | K43: =MESAS!BC137 -> 5
K46: TOTAL
H47: TARJETONES SIN MARCAR | K47: =MESAS!BC138 -> 15
G51: VOTOS TOTALES | K51: =MESAS!BC139 -> 955

Sheet INGENIERIA
F1: =SUPERIOR!F1 -> Elecciones de representantes de los egresados 2017
C4: =MESAS!B142 -> CONSEJO DE FACULTAD DE INGENIERÍA
K6: TOTAL
H7: =MESAS!C144 -> NICOLAS SOLANO CONDE | K7: =MESAS!BC144 -> 48
H9: =MESAS!C145 -> ORLANDO RAFAEL MONTIEL ORTEGA
H12: =MESAS!C146 -> STEPHANNY JULIETH YARALA DUARTE | K12: =MESAS!BC146 -> 112
H14: =MESAS!C147 -> BETTY YANILETH PUELLO BORRERO
H16: =MESAS!C148 -> KATIUSCA VANESSA FLOREZ ROSALES | K16: =MESAS!BC148 -> 57
H18: =MESAS!C149 -> JUAN GUILLERMO COHEN FONTALVO
H21: =MESAS!C150 -> MARIA BERNARDA ALVARADO BAWAB | K21: =MESAS!BC150 -> 70
H23: =MESAS!C151 -> CARLOS EDUARDO HERNANDEZ LALINDE
H26: =MESAS!C152 -> CLAUDIA ISABEL RIVERA FONTALVO | K26: =MESAS!BC152 -> 44
H28: =MESAS!C153 -> HOLLMANG MARLON SALTARIN VILORIA
H31: =MESAS!C154 -> LUIS GERARDO ALMANZA LLANOS | K31: =MESAS!BC154 -> 15
H33: =MESAS!C155 -> ANDRES MAURICIO ROCHA MOLINA
H35: =MESAS!C156 -> WILSON JOSE HERRERA BALLESTAS | K35: =MESAS!BC156 -> 40
H37: =MESAS!C157 -> ENRIQUE ALFONSO GARCIA PELUFFO
K39: TOTAL
H40: VOTOS EN BLANCO | K40: =MESAS!BC158 -> 46
K43: TOTAL
H44: VOTOS NULOS | K44: =MESAS!BC159 -> 4
K47: TOTAL
H48: TARJETONES SIN MARCAR | K48: =MESAS!BC160 -> 3
G53: VOTOS TOTALES | K53: =MESAS!BC161 -> 439

Sheet NUTRICION
F1: =SUPERIOR!F1 -> Elecciones de representantes de los egresados 2017
C4: CONSEJO FACULTAD DE NUTRICIÓN Y DIETÉTICA
K6: TOTAL
H7: =MESAS!C166 -> BASILIA SEGUNDA OROZCO OROZCO | K7: =MESAS!BC166 -> 79
H9: =MESAS!C167 -> LUCIA DEL CARMEN BARRIOS ZAMBRANO
H12: =MESAS!C168 -> ANTONIA ISABEL NIETO SANCHEZ | K12: =MESAS!BC168 -> 44
H14: =MESAS!C169 -> ONEIDA ELENA BAYONA BARROS
H17: =MESAS!C170 -> LUCINDA ESTHER REYES MARIMON | K17: =MESAS!BC170 -> 42
H19: =MESAS!C171 -> KAROLL DARLEY JIMENEZ LEON
H22: =MESAS!C172 -> IDANIS PAOLA DOMINGUEZ CALVO | K22: =MESAS!BC172 -> 20
H24: =MESAS!C173 -> JESSICA PAOLA CAMPO ESTRADA
H27: =MESAS!C174 -> JANIETH ANDREA CARVAJAL BARRETO | K27: =MESAS!BC174 -> 2
H29: =MESAS!C175 -> MARGARITA ROSA FIGUEROA DE AVILA
K33: TOTAL
H34: VOTOS EN BLANCO | K34: =MESAS!BC176 -> 9
K37: TOTAL
H38: VOTOS NULOS | K38: =MESAS!BC177 -> 1
K41: TOTAL
H42: TARJETONES SIN MARCAR | K42: =MESAS!BC178 -> 2
G46: VOTOS TOTALES | K46: =MESAS!BC179 -> 199

Sheet QUIMICA Y FARMACIA
F1: =SUPERIOR!F1 -> Elecciones de representantes de los egresados 2017
C4: CONSEJO FACULTAD DE QUÍMICA Y FARMACIA
K6: TOTAL
H7: =MESAS!C184 -> JULIO CESAR BAYUELO FLOREZ | K7: =MESAS!BC184 -> 9
H9: =MESAS!C185 -> DANIEL TRESPALACIOS RODRIGUEZ
H12: =MESAS!C186 -> ADALBERTO FELIX SEVILLA SERNA | K12: =MESAS!BC186 -> 166
H14: =MESAS!C187 -> MARTIN LUIS ALVIS SERRANO
K16: TOTAL
H17: VOTOS EN BLANCO | K17: =MESAS!BC188 -> 64
K19: TOTAL
H20: VOTOS NULOS | K20: =MESAS!BC189 -> 4
K21: TOTAL
H22: TARJETONES SIN MARCAR | K22: =MESAS!BC190 -> 0
G26: VOTOS TOTALES | K26: =MESAS!BC191 -> 243
